[Event "55th Biel Festival MTO 2022"]
[Site "Biel"]
[Date "2022.07.16"]
[Round "4.34"]
[White "Karthik Rajaa"]
[Black "Vemparala, Nikash"]
[Result "1-0"]
[ECO "D61"]
[WhiteElo "2331"]
[BlackElo "2049"]
[Annotator "ChessBase"]
[PlyCount "63"]
[EventDate "2022.07.13"]
[EventType "swiss"]
[EventCountry "SUI"]
[SourceTitle "playchess.com"]
[Source "ChessBase"]
[SourceQuality "1"]
[TimeControl "40/5400+30:1800+30"]

1. d4 {[%emt 0:01:06]} d5 {[%emt 0:00:07]} 2. c4 {[%emt 0:00:04]} c6 {[%emt 0:00:04]} 3. Nf3 {[%emt 0:00:04]} Nf6 {[%emt 0:00:06]} 4. Nc3 {[%emt 0:00:04]} e6 {[%emt 0:00:06]} 5. Bg5 {[%emt 0:00:05]} Nbd7 {[%emt 0:00:17]} 6. e3 {[%emt 0:00:17]} Be7 {[%emt 0:00:21]} 7. Qc2 {[%emt 0:09:16]} O-O {[%emt 0:00:52]} 8. Rd1 {[%emt 0:04:08]} Re8 {[%emt 0:05:34]} 9. h3 {[%emt 0:18:27]} a6 {[%emt 0:23:38]} 10. a3 {[%emt 0:12:39]} b5 {[%emt 0:10:32]} 11. c5 {[%emt 0:00:40]} Nh5 {[%emt 0:07:59]} 12. Bxe7 {[%emt 0:08:06]} Qxe7 {[%emt 0:01:02]} 13. Be2 {[%emt 0:01:23]} Nhf6 {[%emt 0:11:32]} 14. e4 {[%emt 0:03:00]} dxe4 {[%emt 0:01:45]} 15. Nxe4 {[%emt 0:00:07]} e5 {[%emt 0:00:40]} 16. Nd6 {[%emt 0:02:11]} Rf8 {[%emt 0:04:00]} 17. O-O {[%emt 0:01:20]} e4 {[%emt 0:03:26]} 18. Ng5 {[%emt 0:02:14]} Nd5 {[%emt 0:01:03]} 19. Ngxe4 {[%emt 0:01:35]} f5 {[%emt 0:00:41]} 20. Nc3 {[%emt 0:00:58]} Nf4 {[%emt 0:01:54]} 21. Bf3 {[%emt 0:04:11]} Qg5 {[%emt 0:00:08]} 22. Rfe1 {[%emt 0:01:11]} Nxh3+ {[%emt 0:00:35]} 23. Kf1 {[%emt 0:00:14]} Nf4 {[%emt 0:02:31]} 24. Qb3+ {[%emt 0:00:24]} Kh8 {[%emt 0:00:49]} 25. Nf7+ {[%emt 0:00:45]} Rxf7 {[%emt 0:00:10]} 26. Qxf7 {[%emt 0:00:05]} h6 {[%emt 0:00:27]} 27. Re8+ {[%emt 0:01:00]} Kh7 {[%emt 0:00:08]} 28. Ne4 {[%emt 0:03:52]} Qh4 {[%emt 0:02:50]} 29. Qxf5+ {[%emt 0:01:24]} Ng6 {[%emt 0:00:07]} 30. Qh5 {[%emt 0:00:57]} Qf4 {[%emt 0:01:01]} 31. g3 {[%emt 0:00:15]} Qf7 {[%emt 0:00:07]} 32. Ng5# {[%emt 0:00:05]} 1-0

[Event "55th Biel Festival MTO 2022"]
[Site "Biel"]
[Date "2022.07.16"]
[Round "4.35"]
[White "Marentini, Marcel"]
[Black "Kolbus Dietmar"]
[Result "1/2-1/2"]
[ECO "E90"]
[WhiteElo "2053"]
[BlackElo "2285"]
[Annotator "ChessBase"]
[PlyCount "49"]
[EventDate "2022.07.13"]
[EventType "swiss"]
[EventCountry "SUI"]
[SourceTitle "playchess.com"]
[Source "ChessBase"]
[SourceQuality "1"]
[TimeControl "40/5400+30:1800+30"]

1. Nf3 {[%emt 0:00:19]} Nf6 {[%emt 0:00:18]} 2. c4 {[%emt 0:00:08]} g6 {[%emt 0:00:12]} 3. Nc3 {[%emt 0:00:40]} Bg7 {[%emt 0:00:17]} 4. e4 {[%emt 0:00:21]} d6 {[%emt 0:00:26]} 5. d4 {[%emt 0:00:10]} O-O {[%emt 0:00:09]} 6. h3 {[%emt 0:00:06]} Na6 {[%emt 0:02:37]} 7. Be3 {[%emt 0:00:27]} e5 {[%emt 0:10:12]} 8. d5 {[%emt 0:00:10]} Nh5 {[%emt 0:02:41]} 9. g3 {[%emt 0:00:08]} c5 {[%emt 0:02:13]} 10. Be2 {[%emt 0:09:18]} Nc7 {[%emt 0:04:03]} 11. Nd2 {[%emt 0:03:31]} Nf6 {[%emt 0:00:39]} 12. g4 {[%emt 0:00:08]} Nfe8 {[%emt 0:02:09]} 13. h4 {[%emt 0:02:46]} f5 {[%emt 0:03:32]} 14. exf5 {[%emt 0:04:23]} gxf5 {[%emt 0:00:08]} 15. gxf5 {[%emt 0:00:18]} Bxf5 {[%emt 0:00:15]} 16. h5 {[%emt 0:06:05]} Nf6 {[%emt 0:09:09]} 17. h6 {[%emt 0:02:15]} Bh8 {[%emt 0:00:05]} 18. Rg1+ {[%emt 0:00:58]} Kf7 {[%emt 0:00:12]} 19. Nf3 {[%emt 0:00:42]} Rg8 {[%emt 0:01:33]} 20. Ng5+ {[%emt 0:02:05]} Ke7 {[%emt 0:00:18]} 21. Qb3 {[%emt 0:01:27]} b6 {[%emt 0:00:33]} 22. O-O-O {[%emt 0:01:22]} Qd7 {[%emt 0:00:19]} 23. f3 {[%emt 0:13:53]} Rg6 {[%emt 0:12:26]} 24. Rh1 {[%emt 0:08:59]} Rag8 {[%emt 0:00:55]} 25. Rdg1 {[%emt 0:00:08]} 1/2-1/2

[Event "55th Biel Festival MTO 2022"]
[Site "Biel"]
[Date "2022.07.16"]
[Round "4.36"]
[White "Schwander Lukas"]
[Black "Matsumura, Cocoro"]
[Result "1-0"]
[ECO "D24"]
[WhiteElo "2274"]
[BlackElo "2043"]
[Annotator "ChessBase"]
[PlyCount "63"]
[EventDate "2022.07.13"]
[EventType "swiss"]
[EventCountry "SUI"]
[SourceTitle "playchess.com"]
[Source "ChessBase"]
[SourceQuality "1"]
[TimeControl "40/5400+30:1800+30"]

1. Nf3 {[%emt 0:00:04]} d5 {[%emt 0:00:21]} 2. d4 {[%emt 0:00:05]} Nf6 {[%emt 0:00:06]} 3. c4 {[%emt 0:00:04]} e6 {[%emt 0:00:04]} 4. Nc3 {[%emt 0:00:18]} dxc4 {[%emt 0:00:09]} 5. e4 {[%emt 0:00:05]} Bb4 {[%emt 0:00:04]} 6. Bxc4 {[%emt 0:00:04]} Nxe4 {[%emt 0:00:08]} 7. O-O {[%emt 0:00:06]} Nxc3 {[%emt 0:00:11]} 8. bxc3 {[%emt 0:00:06]} Be7 {[%emt 0:00:08]} 9. Bf4 {[%emt 0:00:04]} O-O {[%emt 0:00:16]} 10. Qc2 {[%emt 0:00:09]} Nd7 {[%emt 0:09:39]} 11. Bd3 {[%emt 0:00:06]} h6 {[%emt 0:00:39]} 12. Rfe1 {[%emt 0:00:27]} Bd6 {[%emt 0:00:34]} 13. Ne5 {[%emt 0:05:34]} Nxe5 {[%emt 0:12:19]} 14. dxe5 {[%emt 0:00:12]} Bc5 {[%emt 0:00:29]} 15. Rad1 {[%emt 0:02:36]} Qe7 {[%emt 0:05:47]} 16. Re4 {[%emt 0:09:47]} Bd7 {[%emt 0:05:42]} 17. Bg3 {[%emt 0:18:59]} Bc6 {[%emt 0:07:14]} 18. Rg4 {[%emt 0:13:33]} Kh8 {[%emt 0:05:06]} 19. Qe2 {[%emt 0:16:29]} Rg8 {[%emt 0:15:32]} 20. h4 {[%emt 0:03:03]} Rad8 {[%emt 0:04:28]} 21. h5 {[%emt 0:00:36]} Qe8 {[%emt 0:00:48]} 22. Bb1 {[%emt 0:02:43]} f5 {[%emt 0:16:00]} 23. exf6 {[%emt 0:03:48]} Rxd1+ {[%emt 0:00:03]} 24. Qxd1 {[%emt 0:00:06]} gxf6 {[%emt 0:00:20]} 25. Bg6 {[%emt 0:13:49]} Qd8 {[%emt 0:00:03]} 26. Qc1 {[%emt 0:00:06]} Bf8 {[%emt 0:00:41]} 27. Bf4 {[%emt 0:00:38]} Ba4 {[%emt 0:00:50]} 28. Bd2 {[%emt 0:00:10]} Qd7 {[%emt 0:00:56]} 29. Rd4 {[%emt 0:00:20]} Qc6 {[%emt 0:01:02]} 30. Bxh6 {[%emt 0:01:08]} Bc5 {[%emt 0:01:07]} 31. Rg4 {[%emt 0:00:42]} Qd6 {[%emt 0:00:37]} 32. Rxa4 {[%emt 0:00:47]} 1-0

[Event "55th Biel Festival MTO 2022"]
[Site "Biel"]
[Date "2022.07.16"]
[Round "4.37"]
[White "Popiol Michal"]
[Black "Dauth Benjamin"]
[Result "1-0"]
[ECO "E97"]
[WhiteElo "2118"]
[BlackElo "2243"]
[Annotator "ChessBase"]
[PlyCount "99"]
[EventDate "2022.07.13"]
[EventType "swiss"]
[EventCountry "SUI"]
[SourceTitle "playchess.com"]
[Source "ChessBase"]
[SourceQuality "1"]
[TimeControl "40/5400+30:1800+30"]

1. d4 {[%emt 0:00:05]} Nf6 {[%emt 0:00:44]} 2. c4 {[%emt 0:00:07]} g6 {[%emt 0:00:16]} 3. Nc3 {[%emt 0:00:23]} Bg7 {[%emt 0:00:06]} 4. e4 {[%emt 0:00:06]} d6 {[%emt 0:00:16]} 5. Be2 {[%emt 0:05:23]} O-O {[%emt 0:00:26]} 6. Nf3 {[%emt 0:04:42]} e5 {[%emt 0:02:47]} 7. O-O {[%emt 0:00:06]} Nc6 {[%emt 0:00:12]} 8. d5 {[%emt 0:00:06]} Ne7 {[%emt 0:00:22]} 9. b4 {[%emt 0:01:31]} a5 {[%emt 0:00:55]} 10. bxa5 {[%emt 0:03:36]} Rxa5 {[%emt 0:01:05]} 11. a4 {[%emt 0:00:52]} Bg4 {[%emt 0:01:17]} 12. Nd2 {[%emt 0:15:56]} Bxe2 {[%emt 0:00:28]} 13. Qxe2 {[%emt 0:00:09]} c5 {[%emt 0:01:01]} 14. Rb1 {[%emt 0:26:07]} Qd7 {[%emt 0:02:45]} 15. Rb5 {[%emt 0:00:20]} Ra7 {[%emt 0:02:37]} 16. Nb3 {[%emt 0:04:38]} Ne8 {[%emt 0:00:34]} 17. Bd2 {[%emt 0:01:48]} f5 {[%emt 0:00:42]} 18. f3 {[%emt 0:01:16]} f4 {[%emt 0:02:30]} 19. Rb1 {[%emt 0:00:49]} g5 {[%emt 0:00:46]} 20. Na5 {[%emt 0:08:45]} b6 {[%emt 0:01:38]} 21. Nc6 {[%emt 0:00:26]} Nxc6 {[%emt 0:00:08]} 22. dxc6 {[%emt 0:00:06]} Qxc6 {[%emt 0:00:06]} 23. Rxb6 {[%emt 0:00:19]} Qc8 {[%emt 0:00:11]} 24. Rb8 {[%emt 0:01:51]} Qd7 {[%emt 0:01:13]} 25. Qd3 {[%emt 0:03:30]} g4 {[%emt 0:09:24]} 26. Ra1 {[%emt 0:05:47]} gxf3 {[%emt 0:01:24]} 27. gxf3 {[%emt 0:01:00]} Qh3 {[%emt 0:02:35]} 28. Nb5 {[%emt 0:02:25]} Raf7 {[%emt 0:01:43]} 29. Qf1 {[%emt 0:01:24]} Qh5 {[%emt 0:00:10]} 30. a5 {[%emt 0:00:44]} Nc7 {[%emt 0:01:54]} 31. Rxf8+ {[%emt 0:01:13]} Bxf8 {[%emt 0:00:09]} 32. a6 {[%emt 0:00:11]} Na8 {[%emt 0:01:49]} 33. Kh1 {[%emt 0:01:38]} Be7 {[%emt 0:00:19]} 34. Qe2 {[%emt 0:01:49]} Rg7 {[%emt 0:01:17]} 35. Rg1 {[%emt 0:00:47]} Rxg1+ {[%emt 0:01:01]} 36. Kxg1 {[%emt 0:00:05]} Kf8 {[%emt 0:00:31]} 37. Ba5 {[%emt 0:00:43]} Qg6+ {[%emt 0:02:24]} 38. Kf1 {[%emt 0:02:15]} Qe8 {[%emt 0:01:03]} 39. Qd3 {[%emt 0:01:05]} Qc6 {[%emt 0:00:51]} 40. a7 {[%emt 0:00:00]} Qa6 {[%emt 0:00:05]} 41. Qd5 {[%emt 0:32:29]} Qxa5 {[%emt 0:31:07]} 42. Qxa8+ {[%emt 0:00:06]} Kg7 {[%emt 0:00:39]} 43. Qb7 {[%emt 0:00:19]} Qa1+ {[%emt 0:01:09]} 44. Kg2 {[%emt 0:00:07]} Qa2+ {[%emt 0:00:18]} 45. Kh3 {[%emt 0:00:08]} Kf6 {[%emt 0:00:14]} 46. a8=Q {[%emt 0:01:51]} Qf2 {[%emt 0:00:05]} 47. Qh8+ {[%emt 0:02:37]} Kg6 {[%emt 0:00:07]} 48. Qg8+ {[%emt 0:01:05]} Kh6 {[%emt 0:00:45]} 49. Qg4 {[%emt 0:00:50]} Bf6 {[%emt 0:01:43]} 50. Qf7 {[%emt 0:00:25]} 1-0

[Event "55th Biel Festival MTO 2022"]
[Site "Biel"]
[Date "2022.07.16"]
[Round "4.38"]
[White "Ermitsch Magnus"]
[Black "Vidonyak Nellya"]
[Result "1-0"]
[ECO "B07"]
[WhiteElo "2234"]
[BlackElo "2124"]
[Annotator "ChessBase"]
[PlyCount "63"]
[EventDate "2022.07.13"]
[EventType "swiss"]
[EventCountry "SUI"]
[SourceTitle "playchess.com"]
[Source "ChessBase"]
[SourceQuality "1"]
[TimeControl "40/5400+30:1800+30"]

1. e4 {[%emt 0:00:06]} d6 {[%emt 0:00:05]} 2. d4 {[%emt 0:00:08]} Nf6 {[%emt 0:00:08]} 3. Nc3 {[%emt 0:00:05]} e5 {[%emt 0:00:08]} 4. Nge2 {[%emt 0:00:25]} Be7 {[%emt 0:00:20]} 5. h3 {[%emt 0:00:10]} h5 {[%emt 0:00:16]} 6. f4 {[%emt 0:07:11]} Nbd7 {[%emt 0:03:10]} 7. Be3 {[%emt 0:02:09]} c6 {[%emt 0:01:41]} 8. g3 {[%emt 0:04:06]} b5 {[%emt 0:02:18]} 9. a3 {[%emt 0:02:11]} a6 {[%emt 0:05:29]} 10. Bg2 {[%emt 0:01:15]} Bb7 {[%emt 0:01:26]} 11. O-O {[%emt 0:03:41]} O-O {[%emt 0:03:09]} 12. Qd2 {[%emt 0:06:41]} Re8 {[%emt 0:06:05]} 13. Rad1 {[%emt 0:02:20]} Bf8 {[%emt 0:03:41]} 14. fxe5 {[%emt 0:17:19]} dxe5 {[%emt 0:00:15]} 15. d5 {[%emt 0:00:46]} cxd5 {[%emt 0:06:08]} 16. exd5 {[%emt 0:01:16]} Bc5 {[%emt 0:02:16]} 17. Bxc5 {[%emt 0:05:40]} Nxc5 {[%emt 0:00:31]} 18. Qg5 {[%emt 0:00:50]} Qb6 {[%emt 0:03:49]} 19. Kh2 {[%emt 0:01:02]} Rad8 {[%emt 0:00:38]} 20. Rf5 {[%emt 0:03:48]} a5 {[%emt 0:20:09]} 21. Rdf1 {[%emt 0:03:25]} Ncd7 {[%emt 0:03:30]} 22. Ne4 {[%emt 0:01:51]} Nh7 {[%emt 0:05:39]} 23. Qd2 {[%emt 0:06:17]} Rf8 {[%emt 0:07:45]} 24. Rxh5 {[%emt 0:03:44]} g6 {[%emt 0:02:46]} 25. Rh4 {[%emt 0:00:50]} f5 {[%emt 0:01:41]} 26. Qh6 {[%emt 0:00:49]} Rf7 {[%emt 0:02:13]} 27. Ng5 {[%emt 0:00:25]} Ndf6 {[%emt 0:00:59]} 28. Ne6 {[%emt 0:01:16]} Rdd7 {[%emt 0:04:05]} 29. Qxg6+ {[%emt 0:00:20]} Kh8 {[%emt 0:00:10]} 30. Rxf5 {[%emt 0:00:49]} Bxd5 {[%emt 0:05:43]} 31. Rxf6 {[%emt 0:00:34]} Bxe6 {[%emt 0:03:34]} 32. Rxh7+ {[%emt 0:00:22]} 1-0

[Event "55th Biel Festival MTO 2022"]
[Site "Biel"]
[Date "2022.07.18"]
[Round "5.1"]
[White "Visakh N R"]
[Black "Sargsyan Shant"]
[Result "1/2-1/2"]
[ECO "E11"]
[WhiteElo "2503"]
[BlackElo "2661"]
[Annotator "TA"]
[PlyCount "44"]
[EventDate "2022.07.13"]
[EventType "swiss"]
[EventCountry "SUI"]
[SourceTitle "playchess.com"]
[Source "ChessBase"]
[SourceQuality "1"]
[TimeControl "40/5400+30:1800+30"]

{[%evp 12,44,22,18,29,32,25,18,29,22,20,19,50,46,54,47,49,45,56,48,54,29,28,18,11,0,44,31,60,38,35,0,52,0,28]} 1. d4 {[%emt 0:00:11]} Nf6 {[%emt 0:02:00]} 2. c4 {[%emt 0:00:06]} e6 {[%emt 0:00:14]} 3. g3 {[%emt 0:00:13]} Bb4+ {[%emt 0:00:27]} 4. Bd2 {[%emt 0:01:53]} a5 {[%emt 0:00:57]} 5. Bg2 {[%emt 0:00:35]} d5 {[%emt 0:00:11]} 6. Nf3 {[%emt 0:00:46]} O-O {[%emt 0:00:18]} 7. Qc2 {[%emt 0:01:26]} c5 {[%emt 0:00:36] E11: Bogo-Indian.} 8. cxd5 $1 {[%emt 0:05:34] 8.cxd5 is better than 8.dxc5.} cxd4 {[%emt 0:00:17]} 9. a3 {[%emt 0:09:23]} Bxd2+ {[%emt 0:03:08]} 10. Qxd2 {[%emt 0:00:06] [#]} exd5 $146 {[%emt 0:06:02]} ({Predecessor:} 10... Qxd5 11. Qxd4 Qb5 12. Qe5 Qb6 13. Nbd2 Nc6 14. Qc3 Qa6 15. Nc4 b5 16. Nce5 Nxe5 17. Qxe5 {½-½ (69) Svane,R (2637)-Ivic,V (2606) Warsaw 2021}) 11. Nxd4 {[%emt 0:05:48]} Ne4 {[%emt 0:01:30]} 12. Bxe4 {[%emt 0:05:18]} dxe4 {[%emt 0:00:09]} 13. Nc3 {[%emt 0:00:02]} Nc6 {[%emt 0:17:22]} 14. O-O-O {[%emt 0:08:00]} Qb6 {[%emt 0:01:58] [#] ...Rd8 is the strong threat.} 15. Qe3 {[%emt 0:08:31]} Nxd4 {[%emt 0:07:14]} 16. Qxd4 {[%emt 0:01:25]} Qb3 {[%emt 0:02:28]} 17. Qd5 {[%emt 0:06:08]} Qb6 {[%emt 0:00:50]} 18. Qd4 {[%emt 0:00:40]} Qh6+ {[%emt 0:06:28]} 19. Qe3 {[%emt 0:01:25]} Qa6 {[%emt 0:00:40]} 20. Qc5 {[%emt 0:01:29] Prevents b5.} ({Much worse is} 20. Qxe4 $6 b5 21. Qd3 b4 $11) 20... Qh6+ {[%emt 0:04:49]} 21. Qe3 {[%emt 0:00:24]} Qa6 {[%emt 0:01:32]} 22. Qc5 {[%emt 0:00:05] Against b5} ({But not} 22. Qxe4 b5 23. Qd3 b4 $11) 22... Qh6+ {[%emt 0:01:16] Weighted Error Value: White=0.09 (flawless) /Black=0.10 (very precise)} 1/2-1/2

[Event "55th Biel Festival MTO 2022"]
[Site "Biel"]
[Date "2022.07.18"]
[Round "5.2"]
[White "Ganguly Surya Shekhar"]
[Black "Motylev Alexander"]
[Result "1/2-1/2"]
[ECO "D45"]
[WhiteElo "2608"]
[BlackElo "2632"]
[Annotator "TA"]
[PlyCount "69"]
[EventDate "2022.07.13"]
[EventType "swiss"]
[EventCountry "SUI"]
[SourceTitle "playchess.com"]
[Source "ChessBase"]
[SourceQuality "1"]
[TimeControl "40/5400+30:1800+30"]

{[%evp 12,69,12,12,2,0,0,0,0,0,0,8,25,8,52,47,43,38,39,38,38,44,48,36,34,33,43,40,47,-39,-37,-40,-36,-57,-42,-39,-39,-48,-52,-49,0,0,0,0,0,0,0,0,0,0,0,0,0,0,0,0,0,0,0,0]} 1. c4 {[%emt 0:01:44]} c6 {[%emt 0:00:23]} 2. Nf3 {[%emt 0:00:26]} d5 {[%emt 0:00:06]} 3. e3 {[%emt 0:00:05]} Nf6 {[%emt 0:00:05]} 4. Nc3 {[%emt 0:00:10]} Nbd7 {[%emt 0:00:07]} 5. d4 {[%emt 0:01:33]} e6 {[%emt 0:00:20]} 6. Be2 {[%emt 0:00:25]} Bd6 {[%emt 0:00:19]} 7. O-O {[%emt 0:00:08]} b6 {[%emt 0:01:21] D45: Semi-Slav: 5 e3.} 8. b3 {[%emt 0:00:16]} Bb7 {[%emt 0:00:23]} 9. Bb2 {[%emt 0:00:06]} O-O {[%emt 0:00:06]} 10. Bd3 {[%emt 0:00:06]} Re8 {[%emt 0:05:44]} 11. a4 {[%emt 0:00:10][%cal Ba2a4,Ba4a5][%mdl 32] [#]} a6 $146 {[%emt 0:03:19]} ({Predecessor:} 11... e5 12. dxe5 Nxe5 13. cxd5 Nxf3+ 14. Qxf3 Be5 15. dxc6 Bxc6 16. Qe2 Nd5 17. Rac1 Qh4 {1-0 (30) Gukesh,D (2684)-Fier,A (2567) Gijon 2022}) 12. a5 {[%emt 0:00:55]} b5 {[%emt 0:00:50]} 13. c5 {[%emt 0:21:37]} Bc7 {[%emt 0:01:12]} 14. b4 {[%emt 0:00:22]} e5 {[%emt 0:00:29]} 15. dxe5 {[%emt 0:09:33]} Nxe5 {[%emt 0:00:49]} 16. Nxe5 {[%emt 0:00:41]} Bxe5 {[%emt 0:00:11]} 17. Rb1 {[%emt 0:00:23]} Bc8 {[%emt 0:04:37][%cal Oe5h2,Bb7c8,Bc8f5,Bf5g6][%mdl 32]} 18. h3 {[%emt 0:01:30]} Bb8 {[%emt 0:05:12]} 19. Ne2 {[%emt 0:03:31]} Ne4 {[%emt 0:04:47]} 20. Nf4 {[%emt 0:06:01]} (20. f3 $14 Ng3 21. Nxg3 Bxg3 22. f4) 20... Qg5 $15 {[%emt 0:21:56]} 21. Re1 {[%emt 0:00:40]} Bf5 {[%emt 0:00:41][%cal Oe4f2]} ({Much worse is} 21... Bxf4 22. exf4 Qxf4 23. f3 $11) 22. Qc2 {[%emt 0:13:28]} Bxf4 {[%emt 0:04:46]} 23. exf4 {[%emt 0:00:07]} Qxf4 {[%emt 0:00:56]} 24. Re3 {[%emt 0:03:05]} Bg6 $1 {[%emt 0:08:36]} 25. Rbe1 {[%emt 0:01:58][%cal Oc2d2]} Nf6 {[%emt 0:05:09]} (25... Rad8 $15) 26. Qd2 $1 $11 {[%emt 0:03:55] [#] And now Rxe8+ would win. The position is equal.} Re6 {[%emt 0:02:56] Threatens to win with ...d4.} 27. g3 {[%emt 0:03:44]} Qh6 {[%emt 0:04:07] ...Bxd3 is the strong threat.} 28. Bxf6 {[%emt 0:00:26]} gxf6 {[%emt 0:03:22]} 29. Bxg6 $1 {[%emt 0:00:33]} hxg6 {[%emt 0:04:32]} ({Much less strong is} 29... fxg6 30. Qd4 Rxe3 31. Rxe3 $16) 30. Qd4 {[%emt 0:01:36]} Rxe3 {[%emt 0:04:41]} 31. Rxe3 {[%emt 0:00:06]} g5 {[%emt 0:01:10]} ({Don't do} 31... Qxh3 32. Qxf6 Rf8 33. Qxc6 $16) 32. Re7 {[%emt 0:02:10] aiming for Kg2.} Kf8 $1 {[%emt 0:01:28]} 33. Rc7 {[%emt 0:02:58] [#] Strongly threatening Kg2.} Re8 {[%emt 0:03:01]} 34. Qg4 {[%emt 0:05:09]} Re6 {[%emt 0:00:49]} 35. Ra7 {[%emt 0:02:23] Weighted Error Value: White=0.08 (flawless) /Black=0.05 (flawless)} 1/2-1/2